bitfinex-derivatives/quotes_ETHF0:USTF0_20230106
["timestamp","ask_amount","ask_price","bid_price","bid_amount"]
[1672979558212,2.98114493,1250.0,1249.8,2.49687234]
[1672979558534,2.98114493,1250.0,1249.9,3.2078]
[1672979559476,2.98114493,1250.0,1249.8,2.49687234]
[1672979559890,5.48114493,1249.9,1249.8,2.49687234]
[1672979560414,5.48114493,1249.9,1249.7,5.7078]
[1672979560836,5.48114493,1249.8,1249.7,2.5]
[1672979561152,2.5,1249.8,1249.7,2.5]
[1672979562512,8.68894493,1249.9,1249.7,2.5]
[1672979563260,8.68894493,1249.9,1249.7,3.69838655]
[1672979563786,2.98114493,1249.8,1249.7,3.69838655]
[1672979564310,2.98114493,1249.8,1249.7,1.19838655]
[1672979564520,2.98114493,1249.8,1249.6,3.69838655]
[1672979564940,2.98114493,1249.8,1249.6,5.49711209]
[1672979566940,2.98114493,1249.8,1249.7,1.19838655]
[1672979567150,2.98114493,1249.8,1249.6,5.49711209]
[1672979567361,2.98114493,1249.8,1249.7,2.5]
[1672979568098,2.98114493,1249.8,1249.7,3.69838655]
[1672979574085,3.59094621,1249.9,1249.7,5.49711209]
[1672979574503,2.98380317,1249.8,1249.7,5.49711209]
[1672979574822,5.48380241,1249.8,1249.7,5.49711209]
[1672979575236,2.98380241,1249.8,1249.7,4.29872554]
[1672979575976,2.98380241,1249.8,1249.7,5.49823718]
[1672979576186,2.98380241,1249.8,1249.7,4.29872554]
[1672979576821,2.98380241,1249.8,1249.7,8.70621058]
[1672979578077,6.09094621,1249.9,1249.7,8.70621058]
[1672979579543,9.29874621,1249.9,1249.7,8.70621058]
[1672979579960,13.49322219,1249.9,1249.7,8.70621058]
[1672979580182,6.79874621,1249.9,1249.7,8.70621058]
[1672979580594,9.29874621,1249.9,1249.7,8.70621058]
[1672979582913,13.49322219,1249.9,1249.7,8.70621058]
[1672979585221,13.49322219,1249.9,1249.7,5.49841058]
[1672979585435,10.99322219,1249.9,1249.7,5.49841058]
[1672979586377,6.79874621,1249.9,1249.7,5.49841058]
[1672979586587,9.29874621,1249.9,1249.7,5.49841058]
[1672979587429,9.29874621,1249.9,1249.8,1.19968504]
[1672979587639,9.29874621,1249.9,1249.7,5.49841058]
[1672979587952,6.09094621,1249.9,1249.7,5.49841058]
[1672979589961,3.59094621,1249.9,1249.7,5.49841058]
[1672979590585,6.09094621,1249.9,1249.8,1.19968504]
[1672979590794,6.09094621,1249.9,1249.7,5.49841058]
[1672979591005,6.09094621,1249.9,1249.8,1.19968504]
[1672979591425,3.59094621,1249.9,1249.8,1.19968504]
[1672979592265,3.59094621,1249.9,1249.7,5.49841058]
[1672979592580,6.09094621,1249.9,1249.7,5.49841058]
[1672979592792,3.59094621,1249.9,1249.7,5.49841058]
[1672979594366,3.59094621,1249.9,1249.8,1.19968504]
[1672979595839,6.09094621,1249.9,1249.8,1.19968504]
[1672979596149,3.59094621,1249.9,1249.8,1.19968504]
[1672979603087,10.99322219,1250.0,1249.8,2.99841058]
[1672979603298,10.99322219,1250.0,1249.8,1.19968504]
[1672979603819,3.59094621,1249.9,1249.8,1.19968504]
[1672979604140,6.09094621,1249.9,1249.8,1.19968504]
[1672979604880,2.5,1249.9,1249.8,1.19968504]
[1672979606873,7.78542219,1250.0,1249.8,1.19968504]
[1672979609386,3.59094621,1250.0,1249.8,1.19968504]
[1672979609598,7.78542219,1250.0,1249.8,1.19968504]
[1672979610021,3.59094621,1250.0,1249.8,1.19968504]
[1672979610229,6.09094621,1250.0,1249.8,1.19968504]
[1672979610442,10.28542219,1250.0,1249.8,1.19968504]
[1672979619507,3.59094621,1249.9,1249.8,1.19968504]
[1672979619698,6.09094621,1249.9,1249.8,1.19968504]
[1672979619914,2.5,1249.9,1249.8,1.19968504]
[1672979620235,6.09094621,1249.9,1249.8,1.19968504]
[1672979620768,6.09094621,1249.9,1249.7,2.9917656]
[1672979620979,9.29874621,1249.9,1249.7,1.19304006]
[1672979621189,13.49322219,1249.9,1249.7,1.19304006]
[1672979623405,2.5,1249.7,1249.6,7.50652554]
[1672979623614,5.48268218,1249.7,1249.6,7.50652554]
[1672979623829,5.48268218,1249.7,1249.6,5.00652554]
[1672979625422,2.98268218,1249.7,1249.6,7.50652554]
[1672979625815,2.98268218,1249.7,1249.6,5.00652554]
[1672979626033,2.98268218,1249.7,1249.6,7.50652554]
[1672979626761,2.98268218,1249.7,1249.6,4.29872554]
[1672979633379,2.98268218,1249.7,1249.6,1.79872554]
[1672979635170,2.98268218,1249.7,1249.6,4.29872554]
[1672979647336,2.98268218,1249.7,1249.6,1.79872554]
[1672979657642,3.59094621,1249.8,1249.6,1.79872554]
[1672979658057,2.98338227,1249.7,1249.6,1.79872554]
[1672979658266,5.48338227,1249.7,1249.6,1.79872554]
[1672979658998,2.5,1249.7,1249.6,1.79872554]
[1672979659737,5.7078,1249.7,1249.5,4.19533615]
[1672979659944,9.29874621,1249.7,1249.5,1.79872554]
[1672979660156,13.49322219,1249.7,1249.5,1.79872554]
[1672979660365,9.29874621,1249.7,1249.4,1.79872554]
[1672979660580,2.98390334,1249.5,1249.4,1.79872554]
[1672979663211,2.98390334,1249.5,1249.3,7.40313615]
[1672979663421,2.98390334,1249.5,1249.4,1.79872554]
[1672979663741,2.98390334,1249.5,1249.4,4.29872554]
[1672979664264,2.98390334,1249.6,1249.4,4.29872554]
[1672979664478,2.5,1249.5,1249.4,4.29872554]
[1672979665943,2.98390334,1249.6,1249.4,4.29872554]
[1672979668994,2.98390334,1249.6,1249.4,2.5]
[1672979669832,2.98390334,1249.5,1249.4,2.5]
[1672979671935,2.98390334,1249.5,1249.3,4.29872554]
[1672979674565,2.98390334,1249.5,1249.4,2.5]
[1672979674881,2.98390334,1249.6,1249.4,4.29872554]
[1672979675090,5.48390334,1249.7,1249.4,7.50652554]
[1672979676351,5.48390334,1249.7,1249.4,9.90313615]
[1672979677296,2.98390334,1249.7,1249.5,1.79872554]
[1672979677506,2.98390334,1249.7,1249.6,2.5]
[1672979687284,2.98390334,1249.8,1249.6,5.7078]
[1672979687487,2.98390334,1249.8,1249.6,7.50652554]
[1672979688428,2.98390334,1249.8,1249.6,15.50252554]
[1672979688638,2.98390334,1249.9,1249.7,1.79872554]
[1672979689062,2.98390334,1249.9,1249.8,2.5]
[1672979693589,2.98390334,1249.9,1249.8,2.49305539]
[1672979694005,3.2078,1249.9,1249.6,7.50652554]
[1672979694216,5.47763247,1249.8,1249.6,5.7078]
[1672979694531,2.5,1249.7,1249.6,5.7078]
[1672979694948,5.47763247,1249.8,1249.6,5.7078]
[1672979696424,2.97763247,1249.8,1249.6,5.7078]
[1672979705680,2.97763247,1249.8,1249.6,7.50652554]
[1672979707147,2.97763247,1249.8,1249.6,5.7078]
[1672979707983,2.97763247,1249.8,1249.6,2.5]
[1672979708829,2.97763247,1249.8,1249.6,4.29872554]
[1672979717349,2.97763247,1249.8,1249.6,6.69533615]
[1672979719242,2.97763247,1249.8,1249.7,1.79872554]
[1672979719554,2.97763247,1249.8,1249.6,6.69533615]
[1672979719971,2.97763247,1249.8,1249.6,9.90313615]
[1672979722493,2.97763247,1249.8,1249.7,1.79872554]
[1672979723017,2.97763247,1249.8,1249.6,9.90313615]
[1672979723644,2.97763247,1249.8,1249.6,6.69533615]
[1672979723855,2.97763247,1249.8,1249.6,9.90313615]
[1672979724595,2.97763247,1249.8,1249.7,1.79872554]
[1672979725325,3.59094621,1249.9,1249.6,9.90313615]
[1672979725537,2.98509096,1249.7,1249.6,9.90313615]
[1672979725749,2.98509096,1249.7,1249.6,8.10441061]
[1672979726274,5.48509096,1249.8,1249.6,8.10441061]
[1672979726588,2.98509096,1249.7,1249.6,8.10441061]
[1672979727013,5.48509096,1249.8,1249.6,9.52278001]
[1672979727221,2.5,1249.8,1249.7,1.79946427]
[1672979728372,5.48571035,1249.8,1249.7,1.79946427]
[1672979728582,2.5,1249.8,1249.7,1.79946427]
[1672979730476,3.59094621,1249.9,1249.7,1.79946427]
[1672979732576,3.59094621,1249.9,1249.8,1.79946427]
[1672979732787,3.59094621,1249.9,1249.8,2.5]
[1672979738779,3.59094621,1249.9,1249.7,1.79946427]
[1672979738985,2.98647334,1249.8,1249.7,1.79946427]
[1672979739196,5.48647334,1249.8,1249.7,1.79946427]
[1672979739401,2.98647334,1249.8,1249.7,1.79946427]
[1672979739722,2.98647334,1249.8,1249.7,4.19607488]
[1672979740672,2.98647334,1249.8,1249.7,7.40387488]
[1672979740989,2.98647334,1249.8,1249.7,5.60441061]
[1672979741722,2.98647334,1249.8,1249.7,7.40413686]
[1672979741929,2.98647334,1249.8,1249.7,5.60441061]
[1672979743509,2.98647334,1249.8,1249.7,7.40403785]
[1672979745192,2.98647334,1249.8,1249.7,5.60441061]
[1672979745707,2.98647334,1249.8,1249.7,7.02266139]
[1672979745919,2.98647334,1249.8,1249.7,7.02266454]
[1672979746127,2.98647334,1249.9,1249.7,7.02266454]
[1672979746338,6.09094621,1250.0,1249.9,2.5]
[1672979747713,6.09094621,1250.0,1249.8,5.49905693]
[1672979747918,2.98492728,1249.9,1249.8,5.49905693]
[1672979748235,2.98493807,1249.9,1249.8,5.49905693]
[1672979748438,2.98493807,1249.9,1249.8,4.29943416]
[1672979749067,2.98493807,1249.9,1249.8,5.49892797]
[1672979749809,2.98493807,1249.9,1249.8,8.70672797]
[1672979751393,2.98493807,1249.9,1249.8,5.49892797]
[1672979751601,2.98493807,1249.9,1249.8,8.70672797]
[1672979752122,2.98493807,1249.9,1249.8,7.50723416]
[1672979752442,2.98493807,1249.9,1249.8,8.70647418]
[1672979752755,2.98493807,1249.9,1249.8,7.50723416]
[1672979753806,2.98493807,1249.9,1249.8,8.70635158]
[1672979754016,2.98493807,1249.9,1249.8,7.50723416]
[1672979755488,2.98493807,1249.9,1249.8,8.70636328]
[1672979755692,2.98493807,1249.9,1249.8,8.70627414]
[1672979761477,2.98493807,1249.9,1249.8,6.20627414]
[1672979761688,2.98493807,1249.9,1249.8,4.40683998]
[1672979762108,2.98493807,1249.9,1249.8,6.90683998]
[1672979762319,2.98493807,1249.9,1249.8,4.40683998]
[1672979762848,2.98493807,1249.9,1249.8,6.90683998]
[1672979763162,2.98493807,1249.9,1249.8,4.40683998]
[1672979763585,2.98369908,1249.9,1249.8,4.40683998]
[1672979763902,6.09094621,1250.0,1249.8,4.40683998]
[1672979764630,9.29874621,1250.0,1249.8,4.40683998]
[1672979766108,9.29874621,1250.0,1249.8,6.90683998]
[1672979766425,6.09094621,1250.0,1249.8,3.69903998]
[1672979766842,6.09094621,1250.0,1249.8,1.19903998]
[1672979767258,6.09094621,1250.0,1249.8,3.69903998]
[1672979767469,6.09094621,1250.0,1249.8,1.19903998]
[1672979767788,6.09094621,1250.0,1249.8,3.69903998]
[1672979769371,2.98436298,1249.9,1249.8,3.69903998]
[1672979769573,6.09094621,1250.0,1249.8,5.49847414]
[1672979770726,2.98476396,1249.9,1249.8,5.49847414]
[1672979771144,2.98476396,1249.9,1249.8,4.29943416]
[1672979772096,2.98476396,1249.9,1249.8,5.49904719]
[1672979773565,2.98531264,1249.9,1249.8,2.99904719]
[1672979773893,6.09094621,1250.0,1249.8,2.99904719]
[1672979774093,6.09094621,1250.0,1249.8,5.49904719]
[1672979774303,2.98535314,1249.9,1249.8,5.49904719]
[1672979774516,6.09094621,1250.0,1249.8,2.99904719]
[1672979774832,6.09094621,1250.0,1249.8,5.49904719]
[1672979777353,6.09094621,1250.0,1249.8,2.99904719]
[1672979777564,6.09094621,1250.0,1249.8,1.19961303]
[1672979777774,6.09094621,1250.0,1249.8,1.19591883]
[1672979777984,3.59094621,1249.9,1249.7,5.00723416]
[1672979778193,5.48504843,1249.8,1249.7,5.00723416]
[1672979779469,2.98504843,1249.8,1249.7,5.00723416]
[1672979780207,2.98504843,1249.8,1249.7,5.60441061]
[1672979780424,2.98504843,1249.8,1249.7,7.40400726]
[1672979781573,2.98504843,1249.8,1249.7,4.19620726]
[1672979783159,2.98504843,1249.8,1249.7,1.79959665]
[1672979783371,2.98504843,1249.8,1249.7,4.19620726]
[1672979785476,2.98504843,1249.8,1249.7,1.79959665]
[1672979785897,2.98504843,1249.8,1249.7,4.19620726]
[1672979787676,2.98504843,1249.8,1249.7,1.79959665]
[1672979788087,2.98504843,1249.8,1249.7,4.19620726]
[1672979788407,2.98504843,1249.8,1249.7,2.39661061]
[1672979788725,2.98504843,1249.8,1249.7,4.19605443]
[1672979789249,2.98504843,1249.8,1249.7,2.39661061]
[1672979789557,2.98504843,1249.8,1249.7,4.19603649]
[1672979789872,2.98504843,1249.8,1249.7,5.9954922]
[1672979790084,2.98504843,1249.8,1249.7,4.19603649]
[1672979790299,2.98504843,1249.8,1249.7,5.99551938]
[1672979791147,2.98504843,1249.8,1249.7,9.20331938]
[1672979791349,2.98504843,1249.8,1249.7,7.40383649]
[1672979792507,2.95304204,1249.8,1249.7,15.39983649]
[1672979792714,7.78542219,1250.2,1249.7,14.42144957]
[1672979793037,2.5,1250.0,1249.9,5.00704981]
[1672979793247,2.5,1250.0,1249.9,7.50704981]
[1672979793444,2.5,1250.1,1249.9,9.90610129]
[1672979793655,2.5,1250.1,1250.0,2.5]
[1672979796370,6.09094621,1250.2,1250.0,2.5]
[1672979803320,6.09094621,1250.2,1249.9,15.50304981]
[1672979804474,6.09094621,1250.2,1249.9,12.29524981]
[1672979804898,6.09094621,1250.2,1249.9,15.50304981]
[1672979806053,6.09094621,1250.2,1249.9,13.7038]
[1672979807620,2.5,1250.1,1249.9,3.2078]
[1672979807829,5.7078,1250.1,1249.8,12.29524981]
[1672979808156,9.29874621,1250.1,1249.8,4.29924981]
[1672979808578,9.29874621,1250.1,1249.7,9.20552717]
[1672979808884,9.29874621,1250.1,1249.8,2.5]
[1672979809093,9.29874621,1250.1,1249.8,4.29924981]
[1672979809831,9.29874621,1250.1,1249.8,2.5]
[1672979810459,9.29874621,1250.1,1249.8,4.29924981]
[1672979811526,5.7078,1250.1,1249.8,4.29924981]
[1672979811733,9.29874621,1250.1,1249.8,4.29924981]
[1672979811940,9.29874621,1250.1,1249.8,7.50704981]
[1672979812152,5.7078,1250.1,1249.8,7.50704981]
[1672979812570,2.98152138,1250.0,1249.8,7.50704981]
[1672979812887,2.5,1249.9,1249.8,7.50704981]
[1672979814041,2.5,1249.9,1249.8,4.29924981]
[1672979814252,2.98152138,1250.0,1249.8,4.29924981]
[1672979821824,2.98152138,1250.0,1249.8,7.50704981]
[1672979823402,2.98152138,1250.0,1249.9,1.79924981]
[1672979824455,2.98152138,1250.1,1249.9,4.19830129]
[1672979824657,2.98152138,1250.1,1250.0,7.50704981]
[1672979829397,2.98152138,1250.1,1250.0,5.7078]
[1672979829710,2.98152138,1250.1,1250.0,4.29924981]
[1672979830657,2.98152138,1250.1,1250.0,2.5]
[1672979831707,2.98152138,1250.1,1250.0,4.29924981]
[1672979835388,2.98152138,1250.1,1250.0,2.5]
[1672979838337,2.98152138,1250.1,1249.9,5.00704981]
[1672979838535,6.09094621,1250.2,1249.9,1.79924981]
[1672979838536,2.98152138,1250.0,1249.9,1.79924981]
[1672979838748,2.98152138,1250.0,1249.8,6.69830129]
[1672979839060,2.98152138,1250.0,1249.8,4.29924981]
[1672979843164,5.48152138,1250.0,1249.8,4.29924981]
[1672979844639,5.48152138,1250.0,1249.8,1.79924981]
[1672979844955,5.48152138,1250.0,1249.8,4.29924981]
[1672979850204,5.48152138,1250.0,1249.8,7.50704981]
[1672979851359,5.48152138,1250.0,1249.8,4.29924981]
[1672979851569,5.48152138,1250.0,1249.8,7.50704981]
[1672979853668,5.48152138,1250.0,1249.8,4.29924981]
[1672979855774,5.48152138,1250.0,1249.8,1.79924981]
[1672979856191,2.98152138,1249.9,1249.8,1.79924981]
[1672979856406,5.48152138,1250.0,1249.8,1.79924981]
[1672979856824,2.98152138,1249.9,1249.8,1.79924981]
[1672979857876,2.98152138,1249.9,1249.8,4.29924981]
[1672979859033,2.98152138,1249.9,1249.8,1.79924981]
[1672979859452,2.98152138,1249.9,1249.8,4.29924981]
[1672979859767,2.98152138,1249.9,1249.8,1.79924981]
[1672979860712,2.98152138,1249.9,1249.8,4.29924981]
[1672979860927,2.98152138,1249.9,1249.8,1.79924981]
[1672979866281,5.48152138,1250.0,1249.8,1.79924981]
[1672979866491,2.98152138,1249.9,1249.8,1.79924981]
[1672979868906,2.98152138,1249.9,1249.8,9.79524981]
[1672979869121,2.98152138,1250.1,1249.8,12.41278961]
[1672979869434,2.98152138,1250.1,1250.0,1.79787604]
[1672979869756,2.98152138,1250.1,1250.0,4.29021003]
[1672979874477,2.98152138,1250.2,1250.0,4.89716805]
[1672979874678,5.48152138,1250.3,1250.1,3.2078]
[1672979874890,17.17294621,1250.4,1250.2,2.5]
[1672979875209,5.48369663,1250.3,1250.2,2.5]
[1672979876680,2.98369663,1250.3,1250.2,2.5]
[1672979879308,2.98369663,1250.4,1250.2,2.5]
[1672979879514,5.48369663,1250.4,1250.2,2.5]
[1672979879729,2.98369663,1250.4,1250.2,2.5]
[1672979882360,2.98369663,1250.4,1250.3,3.2078]
[1672979883828,2.98369663,1250.4,1250.2,2.5]
[1672979884249,2.5,1250.3,1250.2,2.5]
[1672979884881,2.98369663,1250.4,1250.2,2.5]
[1672979885824,2.5,1250.3,1250.1,3.2078]
[1672979886026,5.48369663,1250.3,1250.0,2.5]
[1672979886237,5.48369663,1250.3,1249.9,3.2078]
[1672979886238,5.48369663,1250.2,1249.9,3.2078]
[1672979886459,5.48369663,1250.2,1249.9,5.7078]
[1672979886664,2.5,1250.1,1249.9,5.7078]
[1672979886978,2.5,1250.1,1249.9,2.5]
[1672979890556,2.5,1250.1,1249.8,8.10496805]
[1672979890763,2.5,1250.1,1249.8,5.7078]
[1672979891184,5.48369663,1250.1,1249.8,5.7078]
[1672979896659,5.48369663,1250.1,1249.9,2.5]
[1672979898338,5.48369663,1250.1,1249.9,3.69658757]
[1672979902224,5.48369663,1250.1,1249.9,1.19658757]
[1672979908734,8.69149663,1250.1,1249.9,1.19658757]
[1672979909582,8.69149663,1250.1,1249.8,3.69658757]
[1672979909790,2.98369663,1250.0,1249.8,3.69658757]
[1672979910002,2.5,1249.9,1249.8,3.69658757]
[1672979911263,8.69149663,1250.1,1249.8,2.5]
[1672979911473,8.69149663,1250.1,1249.8,3.69725415]
[1672979915993,2.98369663,1250.0,1249.8,3.69725415]
[1672979916204,2.5,1249.9,1249.8,3.69725415]
[1672979917360,2.98369663,1250.0,1249.8,3.69725415]
[1672979919460,2.98369663,1250.0,1249.9,1.19725415]
[1672979925139,2.98369663,1250.0,1249.8,4.89716805]
[1672979926496,2.98369663,1250.0,1249.8,8.10496805]
[1672979927344,2.98369663,1250.0,1249.8,11.10371773]
[1672979929655,2.98369663,1250.0,1249.9,1.7998595]
[1672979930178,6.09094621,1250.1,1249.9,1.7998595]
[1672979930388,6.09094621,1250.1,1250.0,1.19993383]
[1672979931331,9.29874621,1250.1,1250.0,1.19993383]
[1672979931749,9.29874621,1250.1,1249.9,2.99979333]
[1672979932385,6.09094621,1250.1,1249.9,2.99979333]
[1672979932596,9.29874621,1250.1,1249.9,2.99979333]
[1672979933223,6.09094621,1250.1,1249.9,2.99979333]
[1672979933431,9.29874621,1250.1,1249.9,2.99979333]
[1672979934279,9.29874621,1250.1,1250.0,1.19993383]
[1672979938270,6.09094621,1250.1,1250.0,1.19993383]
[1672979938583,9.29874621,1250.1,1250.0,1.19993383]
[1672979939107,6.09094621,1250.1,1250.0,2.99979333]
[1672979939312,6.09094621,1250.2,1250.0,2.99979333]
[1672979939731,6.09094621,1250.2,1250.0,5.49979333]
[1672979940362,6.09094621,1250.2,1250.1,1.19993383]
[1672979940572,6.09094621,1250.2,1250.1,3.69993383]
[1672979941210,3.59094621,1250.2,1250.1,3.69993383]
[1672979941421,6.09094621,1250.2,1250.1,3.69993383]
[1672979941632,3.59094621,1250.2,1250.1,3.69993383]
[1672979941842,6.09094621,1250.2,1250.1,1.19993383]
[1672979944891,6.09094621,1250.2,1250.0,5.49979333]
[1672979945207,5.48602699,1250.1,1250.0,5.49979333]
[1672979945525,5.48596388,1250.1,1250.0,5.49979333]
[1672979945732,2.5,1250.1,1250.0,5.49979333]
[1672979946575,2.5,1250.1,1250.0,2.99979333]
[1672979946779,2.5,1250.1,1250.0,1.19993383]
[1672979947938,2.98584599,1250.1,1250.0,4.19702755]
[1672979948144,5.48584599,1250.2,1250.0,6.31506295]
[1672979948359,2.98584599,1250.1,1250.0,6.69607582]
[1672979948676,2.98584599,1250.1,1250.0,4.89716805]
[1672979949094,5.48584599,1250.2,1250.1,2.5]
[1672979949302,5.48584599,1250.2,1250.1,3.69879449]
[1672979949937,2.98584599,1250.2,1250.1,3.69879449]
[1672979950149,5.48584599,1250.2,1250.1,3.69879449]
[1672979950775,2.98584599,1250.2,1250.1,3.69879449]
[1672979951093,5.48584599,1250.2,1250.1,3.69879449]
[1672979952974,2.98584599,1250.2,1250.1,3.69879449]
[1672979953184,5.48584599,1250.2,1250.1,1.19879449]
[1672979953815,2.98584599,1250.2,1250.1,2.99705422]
[1672979954030,2.98584599,1250.3,1250.1,1.79825973]
[1672979954235,2.98584599,1250.3,1250.2,2.5]
[1672979955502,6.09094621,1250.4,1250.2,2.5]
[1672979955712,2.98253975,1250.3,1250.2,2.5]
[1672979959604,2.98253975,1250.3,1250.2,5.7078]
[1672979961079,2.98253975,1250.3,1250.2,2.5]
[1672979961292,2.98253975,1250.4,1250.2,7.50605973]
[1672979961601,17.17294621,1250.6,1250.2,7.50605973]
[1672979961602,2.98253975,1250.5,1250.2,7.50605973]
[1672979961813,2.98253975,1250.4,1250.2,7.50605973]
[1672979962026,2.98253975,1250.5,1250.2,7.50605973]
[1672979962436,5.48253975,1250.5,1250.4,3.2078]
[1672979963071,2.5,1250.5,1250.2,7.50605973]
[1672979963281,5.48013,1250.5,1250.2,7.50605973]
[1672979963808,2.98013,1250.5,1250.4,3.2078]
[1672979964972,2.98013,1250.5,1250.2,15.50205973]
[1672979965700,2.98013,1250.5,1250.2,7.50605973]
[1672979966233,2.98013,1250.5,1250.2,5.7078]
[1672979967903,2.98013,1250.5,1250.2,2.5]
[1672979968228,2.98013,1250.5,1250.2,5.7078]
[1672979969805,2.98013,1250.5,1250.2,2.5]
[1672979970123,2.98013,1250.5,1250.2,5.7078]
[1672979971694,2.98013,1250.5,1250.2,7.50605973]
[1672979974003,2.98013,1250.5,1250.2,15.50205973]
[1672979974322,2.98013,1250.6,1250.4,3.2078]
[1672979974533,2.98013,1250.6,1250.5,2.5]
[1672979974745,5.48013,1250.6,1250.5,2.5]
[1672979977157,2.98013,1250.6,1250.5,2.5]
[1672979977573,2.98013,1250.7,1250.5,2.5]
[1672979978206,2.98013,1250.6,1250.5,2.5]
[1672979978731,2.98013,1250.7,1250.5,2.5]
[1672979978940,2.98013,1250.7,1250.6,3.2078]
[1672979981461,2.98013,1250.7,1250.5,2.5]
[1672979981993,2.98013,1250.7,1250.5,5.7078]
[1672979984408,2.98013,1250.7,1250.5,2.5]
[1672979984621,2.98013,1250.7,1250.5,5.7078]
[1672979986408,5.48013,1250.8,1250.5,5.7078]
[1672979986822,2.98013,1250.7,1250.5,5.7078]
[1672979987564,2.5,1250.6,1250.5,5.7078]
[1672979988402,2.98013,1250.7,1250.5,5.7078]
[1672979988719,5.48013,1250.8,1250.5,5.7078]
[1672979989031,2.98013,1250.7,1250.6,3.2078]
[1672979989235,5.48013,1250.8,1250.7,2.5]
[1672979990182,2.98013,1250.8,1250.7,2.5]
[1672979990495,2.97859243,1250.9,1250.7,2.5]
[1672979990711,2.97860459,1251.0,1250.8,3.2078]
[1672979990914,2.97860459,1250.9,1250.8,3.2078]
[1672979992611,2.97860459,1250.9,1250.7,5.7078]
[1672979993243,2.5,1250.8,1250.7,5.7078]
[1672979994402,2.97860459,1250.9,1250.7,5.7078]
[1672979995240,2.5,1250.8,1250.7,5.7078]
[1672979996809,2.97860459,1250.9,1250.7,10.496]
[1672979997022,5.47860459,1251.0,1250.8,3.2078]
[1672979998186,5.47860459,1251.0,1250.7,5.7078]
[1672979998499,2.97860459,1251.0,1250.7,5.7078]
[1672980000491,2.97860459,1251.0,1250.9,3.2078]
[1672980001121,2.97860459,1251.0,1250.7,13.7038]
[1672980001540,6.09094621,1251.1,1250.7,13.7038]
[1672980001541,2.97860459,1250.9,1250.7,13.7038]
[1672980001851,2.5,1250.8,1250.7,13.7038]
[1672980002277,2.5,1250.8,1250.7,5.7078]
[1672980002489,2.97860459,1250.9,1250.7,5.7078]
[1672980005967,5.47860459,1250.9,1250.7,5.7078]
[1672980006591,5.47860459,1250.9,1250.5,14.18345973]
[1672980006803,2.97860459,1250.7,1250.4,2.5]
[1672980007122,2.5,1250.6,1250.4,2.5]
[1672980009646,2.5,1250.6,1250.4,5.7078]
[1672980010376,2.5,1250.6,1250.4,3.2078]
[1672980010585,5.47860459,1250.6,1250.4,3.2078]
[1672980010802,5.47860459,1250.6,1250.5,2.5]
[1672980011215,5.47860459,1250.6,1250.4,5.7078]
[1672980012483,5.47860459,1250.6,1250.4,3.2078]
[1672980012688,2.97860459,1250.5,1250.3,4.29825973]
[1672980012898,2.5,1250.4,1250.3,2.5]
[1672980014057,2.97860459,1250.5,1250.3,2.5]
[1672980017960,2.97860459,1250.5,1250.3,5.7078]
[1672980019215,8.68640459,1250.6,1250.3,5.7078]
[1672980019951,5.47860459,1250.6,1250.3,2.5]
[1672980020163,8.68640459,1250.6,1250.3,5.7078]
[1672980020585,2.97860459,1250.5,1250.3,5.7078]
[1672980020799,2.5,1250.4,1250.3,5.7078]
[1672980021104,2.5,1250.4,1250.3,5.7002888]
[1672980021318,2.5,1250.4,1250.3,2.4924888]
[1672980021528,8.68640459,1250.6,1250.3,2.4924888]
[1672980022268,5.47860459,1250.6,1250.3,2.4924888]
[1672980028050,8.68640459,1250.6,1250.3,2.4924888]
[1672980028785,5.47860459,1250.6,1250.3,2.4924888]
[1672980028998,8.68640459,1250.6,1250.3,2.4924888]
[1672980029199,8.68640459,1250.6,1250.3,5.7002888]
[1672980034570,2.97860459,1250.5,1250.3,5.7002888]
[1672980034780,2.5,1250.4,1250.3,5.7002888]
[1672980036464,2.97860459,1250.5,1250.3,5.7002888]
[1672980036674,2.97860459,1250.5,1250.3,2.4924888]
[1672980039300,2.97860459,1250.5,1250.3,4.29074853]
[1672980042453,2.97860459,1250.5,1250.3,2.4924888]
[1672980042979,2.97860459,1250.4,1250.3,4.29074853]
[1672980046658,2.97860459,1250.4,1250.3,1.79825973]
[1672980046970,2.5,1250.4,1250.2,6.69542778]
[1672980047177,2.98646435,1250.3,1250.2,6.69596159]
[1672980047597,2.98646435,1250.3,1250.2,4.89716805]
[1672980048017,5.48646435,1250.4,1250.2,6.31485346]
[1672980048225,5.48646435,1250.4,1250.3,4.2984382]
[1672980048434,2.5,1250.4,1250.3,2.5]
[1672980049181,2.5,1250.4,1250.3,4.2984382]
[1672980049601,3.59094621,1250.5,1250.3,4.2984382]
[1672980051063,2.5,1250.4,1250.3,4.2984382]
[1672980052431,2.5,1250.4,1250.3,1.7984382]
[1672980052638,5.7078,1250.4,1250.2,6.69560625]
[1672980052959,2.98621964,1250.3,1250.2,6.69560625]
[1672980053164,2.98621964,1250.3,1250.2,4.89716805]
[1672980053376,2.98621964,1250.3,1250.2,6.69561188]
[1672980054111,2.98621964,1250.3,1250.2,4.29844383]
[1672980054325,2.98621964,1250.3,1250.2,6.69561188]
[1672980055168,2.98621964,1250.3,1250.2,4.89716805]
[1672980055370,5.48621964,1250.4,1250.2,4.89716805]
[1672980055690,2.985643,1250.3,1250.2,6.69550184]
[1672980055896,2.985643,1250.3,1250.2,4.29833379]
[1672980056113,2.985643,1250.3,1250.2,6.69550184]
[1672980058110,5.485643,1250.4,1250.2,6.3148481]
[1672980058423,2.985643,1250.4,1250.3,1.79823771]
[1672980059693,5.485643,1250.4,1250.3,1.79823771]
[1672980062418,2.985643,1250.4,1250.3,1.79823771]
[1672980062846,2.98545317,1250.4,1250.3,1.79823771]
[1672980063158,5.48545317,1250.4,1250.3,1.79823771]
[1672980063895,2.5,1250.4,1250.2,8.11308581]
[1672980064108,2.98550295,1250.3,1250.2,8.11308581]
[1672980064418,2.98550295,1250.5,1250.2,8.33401118]
[1672980064629,2.98550295,1250.5,1250.4,4.29812766]
[1672980070100,2.98550295,1250.6,1250.4,9.31370266]
[1672980070309,2.98550295,1250.6,1250.5,5.00536868]
[1672980070943,2.98550295,1250.7,1250.5,5.00536868]
[1672980071251,2.98550295,1250.7,1250.6,2.5]
[1672980072829,2.98550295,1250.7,1250.6,5.7078]
[1672980073981,2.98550295,1250.7,1250.6,3.69717562]
[1672980075454,2.98550295,1250.7,1250.6,2.5]
[1672980076405,2.98550295,1250.8,1250.6,3.69717562]
[1672980076610,3.59094621,1250.9,1250.7,3.2078]
[1672980076611,2.98550295,1250.9,1250.7,3.2078]
[1672980076816,5.48550295,1250.8,1250.7,3.2078]
[1672980078400,5.48550295,1250.8,1250.6,3.69717562]
[1672980078602,5.48550295,1250.8,1250.6,6.90497562]
[1672980079127,2.5,1250.8,1250.6,6.90497562]